[Event "NJSK 2022 Jeugd B"]
[Site "Almelo, Netherlands"]
[Date "2022.05.05"]
[Round "5.7"]
[White "Wierenga, Jael"]
[Black "Bakija, Alan"]
[Result "0-1"]
[TimeControl "90min/40moves + 30min + 30sec/move"]
[WhiteElo "1691"]
[BlackElo "1868"]

1. d4 {[%clk 01:30:59]} {[%emt 00:00:01]} d5 {[%clk 01:30:57]} {[%emt
00:00:04]} 2. c4 {[%clk 01:30:26]} {[%emt 00:01:02]} c6 {[%clk 01:31:22]}
{[%emt 00:00:05]} 3. Nc3 {[%clk 01:30:46]} {[%emt 00:00:10]} Nf6 {[%clk
01:31:08]} {[%emt 00:00:44]} 4. cxd5 {[%clk 01:30:57]} {[%emt 00:00:19]} cxd5
{[%clk 01:31:33]} {[%emt 00:00:05]} 5. Bf4 {[%clk 01:31:04]} {[%emt 00:00:23]}
a6 {[%clk 01:29:37]} {[%emt 00:02:28]} 6. e3 {[%clk 01:30:50]} {[%emt
00:00:44]} Bf5 {[%clk 01:28:17]} {[%emt 00:01:49]} 7. Qb3 {[%clk 01:23:41]}
{[%emt 00:07:40]} Nc6 {[%clk 01:28:23]} {[%emt 00:00:24]} 8. Nf3 {[%clk
01:15:57]} {[%emt 00:08:14]} e6 {[%clk 01:23:11]} {[%emt 00:05:42]} 9. Nh4
{[%clk 01:14:48]} {[%emt 00:01:39]} Be4 {[%clk 01:11:05]} {[%emt 00:12:36]} 10.
f3 {[%clk 01:07:56]} {[%emt 00:07:21]} Bg6 {[%clk 01:11:13]} {[%emt 00:00:22]}
11. Nxg6 {[%clk 01:05:12]} {[%emt 00:03:14]} hxg6 {[%clk 01:11:37]} {[%emt
00:00:05]} 12. Qxb7 {[%clk 00:38:48]} {[%emt 00:26:54]} Na5 {[%clk 00:51:41]}
{[%emt 00:20:26]} 13. Qc7 {[%clk 00:37:43]} {[%emt 00:01:35]} Qxc7 {[%clk
00:51:00]} {[%emt 00:01:12]} 14. Bxc7 {[%clk 00:38:11]} {[%emt 00:00:01]} Nc4
{[%clk 00:51:22]} {[%emt 00:00:08]} 15. Bxc4 {[%clk 00:37:39]} {[%emt
00:01:02]} dxc4 {[%clk 00:51:48]} {[%emt 00:00:04]} 16. e4 {[%clk 00:32:34]}
{[%emt 00:05:35]} Ra7 {[%clk 00:49:43]} {[%emt 00:02:35]} 17. Ba5 {[%clk
00:26:15]} {[%emt 00:06:49]} Rb7 {[%clk 00:50:09]} {[%emt 00:00:05]} 18. O-O-O
{[%clk 00:25:55]} {[%emt 00:00:50]} Nh5 {[%clk 00:49:54]} {[%emt 00:00:45]} 19.
g3 {[%clk 00:25:17]} {[%emt 00:01:07]} Be7 {[%clk 00:49:48]} {[%emt 00:00:36]}
20. d5 {[%clk 00:20:32]} {[%emt 00:05:15]} e5 {[%clk 00:48:35]} {[%emt
00:01:43]} 21. d6 {[%clk 00:15:22]} {[%emt 00:05:41]} Bg5+ {[%clk 00:49:02]}
{[%emt 00:00:03]} 22. Kc2 {[%clk 00:15:33]} {[%emt 00:00:18]} Be3 {[%clk
00:49:07]} {[%emt 00:00:25]} 23. Rhe1 {[%clk 00:11:27]} {[%emt 00:04:37]} Bd4
{[%clk 00:49:26]} {[%emt 00:00:11]} 24. Rd2 {[%clk 00:10:11]} {[%emt 00:01:45]}
Nf6 {[%emt 00:05:22]} 25. Kb1 {[%clk 00:07:26]} Nd7 {[%clk 00:46:41]} {[%emt
00:01:37]} 26. Nd5 {[%clk 00:07:28]} {[%emt 00:00:28]} Nc5 {[%clk 00:44:49]}
{[%emt 00:02:23]} 27. Rc1 {[%clk 00:06:01]} {[%emt 00:01:56]} Rb5 {[%clk
00:39:58]} {[%emt 00:05:21]} 28. Nc7+ {[%clk 00:05:31]} {[%emt 00:01:00]} Kd7
{[%clk 00:40:24]} {[%emt 00:00:05]} 29. Nxb5 {[%clk 00:05:57]} {[%emt
00:00:04]} axb5 {[%clk 00:40:51]} {[%emt 00:00:03]} 30. Re2 {[%clk 00:04:58]}
{[%emt 00:01:27]} Nd3 {[%clk 00:39:30]} {[%emt 00:01:52]} 31. Rd1 {[%clk
00:05:27]} Kxd6 {[%clk 00:39:55]} {[%emt 00:00:06]} 32. Bc3 {[%clk 00:04:43]}
{[%emt 00:01:12]} g5 {[%clk 00:17:35]} {[%emt 00:22:51]} 33. Bxd4 {[%clk
00:05:00]} {[%emt 00:00:14]} exd4 {[%clk 00:18:01]} {[%emt 00:00:03]} 34. b3
{[%clk 00:03:46]} {[%emt 00:01:44]} Kc5 {[%clk 00:15:21]} {[%emt 00:03:10]} 35.
a4 {[%clk 00:01:47]} {[%emt 00:02:29]} Rb8 {[%clk 00:13:13]} {[%emt 00:02:38]}
36. Rc2 {[%clk 00:01:08]} {[%emt 00:01:08]} Nb4 {[%clk 00:13:36]} {[%emt
00:00:08]} 37. Rcd2 {[%clk 00:01:19]} {[%emt 00:00:18]} Nc6 {[%clk 00:10:33]}
{[%emt 00:03:33]} 38. axb5 {[%clk 00:00:34]} {[%emt 00:01:16]} Rxb5 {[%clk
00:10:59]} {[%emt 00:00:03]} 39. Ka2 {[%clk 00:00:31]} {[%emt 00:00:33]} Rxb3
{[%clk 00:10:25]} {[%emt 00:01:04]} 40. f4 {[%clk 00:00:44]} {[%emt 00:00:17]}
Nb4+ {[%clk 00:10:27]} {[%emt 00:00:29]} 41. Ka1 {[%clk 00:01:12]} {[%emt
00:00:02]} c3 {[%clk 00:09:05]} {[%emt 00:01:52]} 42. Rc1 {[%clk 00:26:23]}
{[%emt 00:05:17]} Kc4 {[%clk 00:37:30]} {[%emt 00:02:06]} 43. fxg5 {[%clk
00:19:22]} {[%emt 00:07:31]} d3 {[%clk 00:37:49]} {[%emt 00:00:12]} 44. e5
{[%clk 00:06:47]} {[%emt 00:13:05]} Ra3+ {[%clk 00:37:52]} {[%emt 00:00:27]} 45.
Kb1 {[%clk 00:07:04]} {[%emt 00:00:13]} c2+ {[%clk 00:38:01]} {[%emt 00:00:20]}
46. Rcxc2+ {[%clk 00:07:10]} {[%emt 00:00:24]} dxc2+ {[%clk 00:38:27]} {[%emt
00:00:04]} 47. Kb2 {[%clk 00:07:02]} {[%emt 00:00:37]} Ra2+ {[%clk 00:38:50]}
{[%emt 00:00:07]} 0-1

[Event "NJSK 2022 Jeugd B"]
[Site "Almelo, Netherlands"]
[Date "2022.05.05"]
[Round "5.8"]
[White "Alvares, Thomas"]
[Black "De Heij, Mees"]
[Result "1-0"]
[TimeControl "90min/40moves + 30min + 30sec/move"]
[WhiteElo "1789"]
[BlackElo "1622"]

1. e4 {[%clk 01:30:57]} {[%emt 00:00:02]} c5 {[%clk 01:30:59]} {[%emt
00:00:03]} 2. Nc3 {[%clk 01:31:20]} {[%emt 00:00:05]} Nc6 {[%clk 01:31:12]}
{[%emt 00:00:18]} 3. g3 {[%clk 01:31:40]} {[%emt 00:00:10]} e6 {[%clk
01:30:29]} {[%emt 00:01:12]} 4. Bg2 {[%clk 01:32:05]} {[%emt 00:00:05]} d6
{[%clk 01:28:13]} {[%emt 00:02:47]} 5. f4 {[%clk 01:32:12]} {[%emt 00:00:23]}
Nge7 {[%clk 01:21:30]} {[%emt 00:07:13]} 6. Nf3 {[%clk 01:32:17]} {[%emt
00:00:25]} g6 {[%clk 01:19:28]} {[%emt 00:02:32]} 7. O-O {[%clk 01:32:24]}
{[%emt 00:00:23]} Bg7 {[%clk 01:19:48]} {[%emt 00:00:09]} 8. d3 {[%clk
01:32:40]} {[%emt 00:00:14]} O-O {[%clk 01:20:03]} {[%emt 00:00:15]} 9. h3
{[%clk 01:32:06]} {[%emt 00:01:04]} e5 {[%clk 01:18:13]} {[%emt 00:02:21]} 10.
g4 {[%clk 01:31:00]} {[%emt 00:01:36]} f6 {[%clk 01:15:38]} {[%emt 00:03:05]}
11. Be3 {[%clk 01:25:57]} {[%emt 00:05:33]} a6 {[%clk 01:11:41]} {[%emt
00:04:27]} 12. Qd2 {[%clk 01:23:08]} {[%emt 00:03:19]} b6 {[%clk 01:03:52]}
{[%emt 00:08:19]} 13. f5 {[%clk 01:11:45]} {[%emt 00:11:53]} Nd4 {[%clk
00:49:20]} {[%emt 00:15:02]} 14. fxg6 {[%clk 01:08:11]} {[%emt 00:04:03]} hxg6
{[%clk 00:46:41]} {[%emt 00:03:09]} 15. Ne2 {[%clk 01:06:52]} {[%emt 00:01:49]}
Nxe2+ {[%clk 00:43:37]} {[%emt 00:03:35]} 16. Qxe2 {[%clk 01:07:20]} {[%emt
00:00:02]} Ra7 {[%clk 00:43:29]} {[%emt 00:00:38]} 17. c3 {[%clk 01:03:34]}
{[%emt 00:04:15]} Bd7 {[%clk 00:41:09]} {[%emt 00:02:51]} 18. a4 {[%clk
01:02:28]} {[%emt 00:01:36]} Bc6 {[%clk 00:39:57]} {[%emt 00:01:41]} 19. Nd2
{[%clk 00:56:42]} {[%emt 00:06:17]} d5 {[%clk 00:33:50]} {[%emt 00:06:38]} 20.
d4 {[%clk 00:47:00]} {[%emt 00:10:12]} cxd4 {[%clk 00:33:59]} {[%emt 00:00:20]}
21. cxd4 {[%clk 00:47:16]} {[%emt 00:00:14]} exd4 {[%clk 00:34:03]} {[%emt
00:00:26]} 22. Bxd4 {[%clk 00:47:01]} {[%emt 00:00:45]} dxe4 {[%clk 00:34:03]}
{[%emt 00:00:29]} 23. Qf2 {[%clk 00:46:49]} {[%emt 00:00:43]} Rd7 {[%clk
00:23:29]} {[%emt 00:11:04]} 24. Bxb6 {[%clk 00:45:02]} {[%emt 00:02:17]} Rxd2
{[%clk 00:18:47]} {[%emt 00:05:11]} 25. Bxd8 {[%clk 00:45:25]} {[%emt
00:00:07]} Rxf2 {[%clk 00:19:11]} {[%emt 00:00:06]} 26. Bxe7 {[%clk 00:45:42]}
{[%emt 00:00:13]} Rxf1+ {[%clk 00:16:49]} {[%emt 00:02:52]} 27. Bxf1 {[%clk
00:44:56]} {[%emt 00:01:16]} Re8 {[%clk 00:17:00]} {[%emt 00:00:19]} 28. Bc4+
{[%clk 00:44:36]} {[%emt 00:00:50]} Kh7 {[%clk 00:17:08]} {[%emt 00:00:22]} 29.
Bc5 {[%clk 00:41:53]} {[%emt 00:03:12]} f5 {[%clk 00:15:44]} {[%emt 00:01:55]}
30. gxf5 {[%clk 00:40:38]} {[%emt 00:01:45]} gxf5 {[%clk 00:16:10]} {[%emt
00:00:04]} 31. Rf1 {[%clk 00:38:30]} {[%emt 00:02:37]} Kg6 {[%clk 00:15:12]}
{[%emt 00:01:29]} 32. a5 {[%clk 00:31:23]} {[%emt 00:07:37]} e3 {[%clk
00:13:51]} {[%emt 00:01:52]} 33. Be2 {[%clk 00:28:12]} {[%emt 00:03:42]} Bxb2
{[%clk 00:12:51]} {[%emt 00:01:29]} 34. Rb1 {[%clk 00:27:43]} {[%emt 00:00:58]}
Bf6 {[%clk 00:12:47]} {[%emt 00:00:34]} 35. Rb6 {[%clk 00:25:46]} {[%emt
00:02:28]} Bb5 {[%clk 00:08:05]} {[%emt 00:05:12]} 36. Kf1 {[%clk 00:23:17]}
{[%emt 00:02:59]} f4 {[%clk 00:06:51]} {[%emt 00:01:44]} 37. Bd4 {[%clk
00:21:54]} {[%emt 00:01:55]} Rf8 {[%clk 00:03:45]} {[%emt 00:03:35]} 38. Bxb5
{[%clk 00:21:03]} {[%emt 00:01:22]} axb5 {[%clk 00:04:09]} {[%emt 00:00:05]} 39.
Rxf6+ {[%clk 00:20:50]} {[%emt 00:00:43]} Rxf6 {[%clk 00:04:17]} {[%emt
00:00:23]} 40. Bxf6 {[%clk 00:21:16]} {[%emt 00:00:03]} Kxf6 {[%clk 00:04:46]}
41. a6 {[%clk 00:21:34]} {[%emt 00:00:12]} Ke5 {[%clk 00:29:01]} {[%emt
00:06:16]} 42. a7 {[%clk 00:50:32]} {[%emt 00:01:31]} Kd4 {[%clk 00:29:12]}
{[%emt 00:00:19]} 43. a8=Q {[%clk 00:50:48]} {[%emt 00:00:14]} b4 {[%clk
00:29:00]} {[%emt 00:00:42]} 44. Qc6 {[%clk 00:49:47]} {[%emt 00:01:31]} b3
{[%clk 00:24:40]} {[%emt 00:04:51]} 45. Ke2 {[%clk 00:47:43]} {[%emt 00:02:34]}
f3+ {[%clk 00:24:29]} {[%emt 00:00:41]} 46. Qxf3 {[%clk 00:46:48]} {[%emt
00:01:25]} Kc3 {[%clk 00:20:03]} {[%emt 00:04:56]} 47. Qxe3+ {[%clk 00:46:02]}
{[%emt 00:01:16]} Kb2 {[%clk 00:17:08]} {[%emt 00:03:25]} 48. h4 {[%clk
00:46:18]} {[%emt 00:00:15]} Ka1 {[%clk 00:17:19]} {[%emt 00:00:19]} 49. h5
{[%clk 00:46:33]} {[%emt 00:00:15]} b2 {[%clk 00:17:34]} {[%emt 00:00:15]} 50.
Qa3+ {[%clk 00:46:53]} {[%emt 00:00:09]} Kb1 {[%clk 00:17:57]} {[%emt
00:00:06]} 51. Qxb2+ {[%clk 00:47:20]} {[%emt 00:00:03]} 1-0

[Event "NJSK 2022 Jeugd B"]
[Site "Almelo, Netherlands"]
[Date "2022.05.05"]
[Round "5.9"]
[White "Blom, Rens"]
[Black "Knol, Daniel"]
[Result "1/2-1/2"]
[TimeControl "90min/40moves + 30min + 30sec/move"]
[WhiteElo "1699"]
[BlackElo "1685"]

1. c4 {[%clk 01:30:58]} {[%emt 00:00:02]} e5 {[%clk 01:30:58]} {[%emt
00:00:03]} 2. Nc3 {[%clk 01:31:24]} {[%emt 00:00:02]} Nf6 {[%clk 01:31:24]}
{[%emt 00:00:03]} 3. Nf3 {[%clk 01:31:52]} {[%emt 00:00:03]} Nc6 {[%clk
01:31:51]} {[%emt 00:00:04]} 4. e4 {[%clk 01:32:19]} {[%emt 00:00:03]} Bb4
{[%clk 01:32:18]} {[%emt 00:00:03]} 5. d3 {[%clk 01:32:44]} {[%emt 00:00:05]}
d6 {[%clk 01:32:44]} {[%emt 00:00:04]} 6. g3 {[%clk 01:33:10]} {[%emt
00:00:04]} Bg4 {[%clk 01:33:10]} {[%emt 00:00:04]} 7. Bg2 {[%emt 00:01:21]} Nd4
{[%clk 01:32:23]} 8. h3 {[%clk 01:33:57]} {[%emt 00:00:08]} Bxf3 {[%clk
01:32:48]} {[%emt 00:00:05]} 9. Bxf3 {[%clk 01:34:22]} {[%emt 00:00:05]} Bc5
{[%clk 01:32:44]} {[%emt 00:00:35]} 10. O-O {[%clk 01:33:50]} {[%emt 00:01:02]}
O-O {[%clk 01:32:39]} {[%emt 00:00:34]} 11. Bg2 {[%clk 01:33:38]} {[%emt
00:00:42]} c6 {[%clk 01:33:04]} {[%emt 00:00:06]} 12. Kh2 {[%clk 01:31:17]}
{[%emt 00:02:51]} Nd7 {[%clk 01:31:42]} {[%emt 00:01:52]} 13. Ne2 {[%clk
01:25:15]} {[%emt 00:06:31]} Qb6 {[%clk 01:20:55]} {[%emt 00:11:17]} 14. f4
{[%clk 01:20:11]} {[%emt 00:05:33]} exf4 {[%clk 01:21:20]} {[%emt 00:00:06]} 15.
gxf4 {[%clk 01:20:35]} {[%emt 00:00:06]} f5 {[%clk 01:00:15]} {[%emt 00:21:35]}
16. Ng3 {[%clk 01:00:54]} {[%emt 00:20:11]} Rae8 {[%clk 00:53:25]} {[%emt
00:07:21]} 17. Bd2 {[%clk 00:51:00]} {[%emt 00:10:23]} a5 {[%clk 00:39:20]}
{[%emt 00:14:35]} 18. Bc3 {[%clk 00:46:22]} {[%emt 00:05:08]} g6 {[%clk
00:32:36]} {[%emt 00:07:14]} 19. exf5 {[%clk 00:31:55]} {[%emt 00:14:57]} Nxf5
{[%clk 00:32:06]} {[%emt 00:00:59]} 20. Nxf5 {[%clk 00:31:57]} {[%emt
00:00:28]} gxf5 {[%clk 00:31:40]} {[%emt 00:00:56]} 21. Re1 {[%clk 00:21:56]}
{[%emt 00:10:32]} Bd4 {[%clk 00:23:57]} {[%emt 00:08:13]} 22. Qh5 {[%clk
00:21:47]} {[%emt 00:00:38]} Rxe1 {[%clk 00:23:43]} {[%emt 00:00:44]} 23. Rxe1
{[%clk 00:22:13]} {[%emt 00:00:04]} Bxc3 {[%clk 00:23:52]} {[%emt 00:00:21]} 24.
bxc3 {[%clk 00:20:50]} {[%emt 00:01:54]} Qf2 {[%clk 00:20:58]} {[%emt
00:03:23]} 25. Re7 {[%clk 00:11:27]} {[%emt 00:09:53]} Qxf4+ {[%clk 00:21:22]}
{[%emt 00:00:06]} 26. Kh1 {[%clk 00:11:52]} {[%emt 00:00:05]} Qc1+ {[%clk
00:21:23]} {[%emt 00:00:29]} 27. Kh2 {[%clk 00:12:15]} {[%emt 00:00:07]} Qf4+
{[%emt 00:01:03]} 28. Kg1 Qc1+ {[%emt 00:00:06]} 29. Kf2 Qd2+ 30. Kf3 {[%emt
00:00:12]} Ne5+ {[%clk 00:21:14]} 1/2-1/2

[Event "NJSK 2022 Jeugd B"]
[Site "Almelo, Netherlands"]
[Date "2022.05.06"]
[Round "6.1"]
[White "Slagboom, Leandro"]
[Black "Labruyere, Roger"]
[Result "1-0"]
[TimeControl "90min/40moves + 30min + 30sec/move"]
[WhiteElo "1997"]
[BlackElo "2199"]

1. e4 {[%clk 01:30:57]} {[%emt 00:00:02]} c5 {[%clk 01:30:56]} {[%emt
00:00:05]} 2. Nf3 {[%clk 01:31:23]} {[%emt 00:00:04]} d6 {[%clk 01:31:23]}
{[%emt 00:00:03]} 3. d4 {[%clk 01:31:48]} {[%emt 00:00:07]} cxd4 {[%clk
01:31:50]} {[%emt 00:00:02]} 4. Nxd4 {[%clk 01:32:12]} {[%emt 00:00:03]} Nf6
{[%clk 01:32:17]} {[%emt 00:00:02]} 5. Nc3 {[%clk 01:32:37]} {[%emt 00:00:06]}
e6 {[%clk 01:32:45]} {[%emt 00:00:02]} 6. Be3 {[%clk 01:30:42]} {[%emt
00:02:25]} a6 {[%clk 01:32:35]} {[%emt 00:00:40]} 7. f3 {[%clk 01:30:52]}
{[%emt 00:00:20]} Nc6 {[%clk 01:32:50]} {[%emt 00:00:16]} 8. Qd2 {[%clk
01:29:32]} {[%emt 00:01:50]} Be7 {[%clk 01:29:58]} {[%emt 00:03:22]} 9. O-O-O
{[%clk 01:29:52]} {[%emt 00:00:10]} Qa5 {[%clk 01:26:20]} {[%emt 00:04:06]} 10.
Kb1 {[%clk 01:26:17]} {[%emt 00:04:06]} Nxd4 {[%clk 01:23:09]} {[%emt
00:03:41]} 11. Bxd4 {[%clk 01:24:36]} {[%emt 00:02:12]} e5 {[%clk 01:20:21]}
{[%emt 00:03:19]} 12. Be3 {[%clk 01:21:32]} {[%emt 00:03:33]} Be6 {[%clk
01:18:43]} {[%emt 00:02:08]} 13. g4 {[%clk 01:15:13]} {[%emt 00:06:49]} h6
{[%clk 01:15:05]} {[%emt 00:04:08]} 14. Rg1 {[%clk 01:09:18]} {[%emt 00:06:24]}
Rc8 {[%clk 01:11:54]} {[%emt 00:03:42]} 15. Nd5 {[%clk 00:59:36]} {[%emt
00:10:12]} Qxd2 {[%clk 01:12:12]} {[%emt 00:00:13]} 16. Rxd2 {[%clk 00:59:01]}
{[%emt 00:01:05]} Bxd5 {[%clk 01:11:36]} {[%emt 00:01:06]} 17. exd5 {[%clk
00:59:21]} {[%emt 00:00:10]} Nd7 {[%clk 01:11:44]} {[%emt 00:00:21]} 18. f4
{[%clk 00:53:14]} {[%emt 00:06:37]} Bf6 {[%clk 01:06:13]} {[%emt 00:06:02]} 19.
g5 {[%clk 00:48:04]} {[%emt 00:05:39]} hxg5 {[%clk 01:05:39]} {[%emt 00:01:03]}
20. fxg5 {[%clk 00:47:14]} {[%emt 00:01:21]} Bd8 {[%clk 01:05:58]} {[%emt
00:00:11]} 21. Rg4 {[%clk 00:44:48]} {[%emt 00:02:56]} Nc5 {[%clk 00:52:58]}
{[%emt 00:13:30]} 22. b4 {[%clk 00:38:30]} {[%emt 00:06:48]} Nd7 {[%clk
00:43:08]} {[%emt 00:10:20]} 23. c4 {[%clk 00:35:30]} {[%emt 00:03:31]} Bb6
{[%clk 00:43:05]} {[%emt 00:00:33]} 24. Bxb6 {[%clk 00:35:33]} {[%emt
00:00:27]} Nxb6 {[%clk 00:43:30]} {[%emt 00:00:05]} 25. Kb2 {[%clk 00:34:11]}
{[%emt 00:01:52]} Nd7 {[%clk 00:37:37]} {[%emt 00:06:22]} 26. h4 {[%clk
00:30:49]} {[%emt 00:03:52]} Rc7 {[%clk 00:35:53]} {[%emt 00:02:14]} 27. Bd3
{[%clk 00:30:06]} {[%emt 00:01:13]} Ke7 {[%clk 00:32:59]} {[%emt 00:03:25]} 28.
Rh2 {[%clk 00:29:19]} {[%emt 00:01:17]} g6 {[%clk 00:32:01]} {[%emt 00:01:30]}
29. Kb3 {[%clk 00:20:36]} {[%emt 00:09:12]} b6 {[%clk 00:30:45]} {[%emt
00:01:46]} 30. h5 {[%clk 00:18:41]} {[%emt 00:02:26]} gxh5 {[%clk 00:31:09]}
{[%emt 00:00:04]} 31. Rgh4 {[%clk 00:18:11]} {[%emt 00:01:01]} a5 {[%clk
00:31:16]} {[%emt 00:00:24]} 32. a3 {[%clk 00:15:37]} {[%emt 00:03:03]} axb4
{[%clk 00:31:21]} {[%emt 00:00:25]} 33. axb4 {[%clk 00:16:02]} {[%emt
00:00:05]} Ra7 {[%clk 00:30:59]} {[%emt 00:00:52]} 34. Ra2 {[%clk 00:15:44]}
{[%emt 00:00:48]} Rxa2 {[%clk 00:31:09]} {[%emt 00:00:20]} 35. Kxa2 {[%clk
00:16:13]} {[%emt 00:00:01]} Nf8 {[%clk 00:30:50]} {[%emt 00:00:49]} 36. Be2
{[%clk 00:10:49]} {[%emt 00:05:54]} Ng6 {[%clk 00:30:53]} {[%emt 00:00:27]} 37.
Rxh5 {[%clk 00:10:51]} {[%emt 00:00:28]} Ra8+ {[%clk 00:31:11]} {[%emt
00:00:12]} 38. Kb3 {[%clk 00:10:31]} {[%emt 00:00:51]} Nf4 {[%clk 00:31:34]}
{[%emt 00:00:07]} 39. Rh2 {[%clk 00:10:24]} {[%emt 00:00:36]} Rg8 {[%clk
00:31:47]} {[%emt 00:00:17]} 40. Ka4 {[%clk 00:08:13]} {[%emt 00:02:42]} Rxg5
{[%clk 00:30:08]} {[%emt 00:02:08]} 41. Kb5 {[%clk 00:06:05]} {[%emt 00:02:39]}
Ng6 {[%clk 00:00:49]} {[%emt 00:29:48]} 42. Kxb6 {[%clk 00:04:50]} {[%emt
00:01:46]} Nf8 {[%clk 00:01:02]} {[%emt 00:00:16]} 43. Kc7 {[%clk 00:24:20]}
{[%emt 00:11:00]} Rg3 {[%clk 00:24:30]} {[%emt 00:07:01]} 44. c5 {[%clk
00:19:55]} {[%emt 00:04:56]} Rc3 {[%clk 00:23:21]} {[%emt 00:01:39]} 45. c6
{[%clk 00:19:34]} {[%emt 00:00:51]} Ng6 {[%clk 00:20:53]} {[%emt 00:02:59]} 46.
Kb8 {[%clk 00:10:18]} {[%emt 00:09:47]} Kf6 {[%clk 00:14:19]} {[%emt 00:07:04]}
47. Rf2+ {[%clk 00:07:44]} {[%emt 00:03:03]} Kg7 {[%clk 00:13:53]} {[%emt
00:00:56]} 48. Bh5 {[%clk 00:06:24]} {[%emt 00:01:51]} Rb3 {[%clk 00:10:24]}
{[%emt 00:03:58]} 49. Bxg6 {[%clk 00:06:33]} {[%emt 00:00:21]} Rxb4+ {[%clk
00:10:43]} {[%emt 00:00:11]} 50. Kc7 {[%clk 00:06:43]} {[%emt 00:00:20]} Kxg6
{[%clk 00:10:21]} {[%emt 00:00:52]} 51. Kxd6 {[%clk 00:07:06]} {[%emt
00:00:08]} e4 {[%clk 00:08:32]} {[%emt 00:02:19]} 52. c7 {[%clk 00:07:06]}
{[%emt 00:00:31]} Rc4 {[%clk 00:08:45]} {[%emt 00:00:16]} 53. Kd7 {[%clk
00:06:56]} {[%emt 00:00:40]} e3 {[%clk 00:08:26]} {[%emt 00:00:49]} 54. Re2
{[%clk 00:06:29]} {[%emt 00:00:58]} Rd4 {[%clk 00:05:47]} {[%emt 00:03:07]} 55.
c8=Q {[%clk 00:06:42]} {[%emt 00:00:18]} Rxd5+ {[%clk 00:06:12]} {[%emt
00:00:05]} 56. Ke7 {[%clk 00:06:51]} {[%emt 00:00:22]} Re5+ {[%clk 00:06:26]}
{[%emt 00:00:15]} 57. Kd6 {[%clk 00:06:57]} {[%emt 00:00:23]} f6 {[%clk
00:06:37]} {[%emt 00:00:19]} 58. Qc3 {[%clk 00:06:50]} {[%emt 00:00:38]} Rg5
{[%clk 00:06:19]} {[%emt 00:00:47]} 59. Rxe3 {[%clk 00:07:07]} {[%emt
00:00:14]} Kf7 {[%clk 00:06:42]} {[%emt 00:00:07]} 60. Rf3 {[%clk 00:07:11]}
{[%emt 00:00:27]} Rg6 {[%clk 00:07:07]} {[%emt 00:00:05]} 61. Qc7+ {[%clk
00:07:07]} {[%emt 00:00:33]} Kg8 {[%clk 00:07:30]} {[%emt 00:00:06]} 62. Qd8+
{[%clk 00:07:30]} {[%emt 00:00:08]} Kg7 {[%clk 00:07:19]} {[%emt 00:00:41]} 63.
Ke7 {[%clk 00:07:45]} {[%emt 00:00:16]} 1-0